bitfinex/quotes_SOLUSD_20251119
["timestamp","ask_amount","ask_price","bid_price","bid_amount"]
[1763575584233,7.14710925,132.27,132.24,1.82]
[1763575585096,7.14710925,132.29,132.25,7.14710925]
[1763575585417,22.55873817,132.3,132.26,7.14710925]
[1763575585726,22.55873817,132.3,132.27,1.82]
[1763575585919,30.35584742,132.3,132.27,1.82]
[1763575586109,15.0,132.3,132.27,8.96710925]
[1763575586428,15.0,132.3,132.28,7.14710925]
[1763575586721,15.0,132.3,132.29,7.14710925]
[1763575587025,15.0,132.3,132.29,14.7062596]
[1763575587523,14.52,132.3,132.29,24.97508729]
[1763575587729,0.65,132.38,132.33,18.12096]
[1763575587939,0.65,132.38,132.35,7.14710925]
[1763575588136,0.65,132.4,132.36,7.14710925]
[1763575588345,7.79710925,132.4,132.37,1.82]
[1763575588519,0.85,132.45,132.39,7.14710925]
[1763575588828,0.2,132.45,132.44,14.69769819]
[1763575589006,0.1,132.48,132.47,18.12096]
[1763575589211,0.1,132.48,132.47,36.87689694]
[1763575589826,0.1,132.48,132.47,9.78882769]
[1763575590030,0.1,132.48,132.47,1.82]
[1763575590200,0.1,132.48,132.47,8.96710925]
[1763575590408,0.1,132.48,132.47,1.82]
[1763575590611,0.1,132.48,132.47,8.96710925]
[1763575591135,0.75,132.48,132.47,1.82]
[1763575591336,7.89710925,132.48,132.46,1.82]
[1763575591527,7.14710925,132.47,132.42,7.14710925]
[1763575591710,7.14710925,132.46,132.43,1.82]
[1763575591905,7.14710925,132.45,132.35,1.99999999]
[1763575592136,7.79710925,132.45,132.4,7.14710925]
[1763575592336,7.14710925,132.43,132.41,1.82]
[1763575592634,0.65,132.47,132.41,8.96710925]
[1763575592935,7.14710925,132.45,132.41,8.96710925]
[1763575593137,7.14710925,132.43,132.41,1.82]
[1763575593521,0.65,132.43,132.41,1.82]
[1763575593722,0.65,132.43,132.42,1.82]
[1763575594068,7.79710925,132.43,132.41,1.82]
[1763575594207,7.14710925,132.42,132.41,1.82]
[1763575594408,7.79710925,132.42,132.41,1.82]
[1763575594819,26.43304885,132.41,132.29,38.55159878]
[1763575595017,7.14710925,132.4,132.36,7.14710925]
[1763575595222,7.79710925,132.4,132.37,1.82]
[1763575595419,7.79710925,132.4,132.33,9.78882769]
[1763575595420,7.14710925,132.38,132.33,9.78882769]
[1763575595611,7.14710925,132.34,132.3,7.14710925]
[1763575595815,7.14710925,132.33,132.31,1.82]
[1763575596530,11.60882769,132.39,132.31,1.82]
[1763575596735,7.14710925,132.34,132.31,1.82]
[1763575597041,14.70454576,132.32,132.31,1.82]
[1763575597226,7.14710925,132.32,132.31,1.82]
[1763575597432,0.65,132.32,132.3,1.82]
[1763575597747,7.79710925,132.31,132.3,1.82]
[1763575597944,7.79710925,132.31,132.27,1.82]
[1763575598256,7.14710925,132.28,132.27,1.82]
[1763575598541,7.14710925,132.28,132.26,1.82]
[1763575599085,7.56086496,132.26,132.23,1.82]
[1763575599223,14.70797421,132.26,132.23,1.82]
[1763575599532,7.79710925,132.26,132.23,1.82]
[1763575599939,7.79710925,132.25,132.23,1.82]
[1763575600138,7.14710925,132.24,132.23,1.82]
[1763575600341,7.79710925,132.24,132.23,1.82]
[1763575600644,7.79710925,132.24,132.18,7.14710925]
[1763575600847,7.79710925,132.24,132.19,1.82]
[1763575600848,7.14710925,132.22,132.19,1.82]
[1763575601149,7.14710925,132.2,132.19,1.82]
[1763575601452,7.79710925,132.21,132.16,8.96710925]
[1763575601668,7.14710925,132.2,132.16,8.96710925]
[1763575601840,7.79710925,132.2,132.16,1.82]
[1763575602046,7.79710925,132.19,132.16,1.82]
[1763575603144,15.3621548,132.19,132.16,1.82]
[1763575603335,7.14710925,132.17,132.16,1.82]
[1763575603538,18.12096,132.21,132.16,1.82]
[1763575603746,7.79710925,132.19,132.16,1.82]
[1763575604043,7.14710925,132.18,132.16,1.82]
[1763575604249,7.79710925,132.18,132.16,1.82]
[1763575604448,0.65,132.18,132.16,1.82]
[1763575604653,0.65,132.22,132.17,7.14710925]
[1763575604955,7.14710925,132.18,132.16,1.82]
[1763575605152,7.14710925,132.19,132.16,1.82]
[1763575605454,7.14710925,132.2,132.16,8.96710925]
[1763575605648,7.14710925,132.19,132.16,1.82]
[1763575605846,7.14710925,132.18,132.16,1.82]
[1763575606148,0.65,132.19,132.16,1.82]
[1763575606334,18.12096,132.22,132.16,9.38648332]
[1763575606335,0.65,132.22,132.16,9.38648332]
[1763575606664,7.14710925,132.2,132.16,8.96710925]
[1763575606867,0.65,132.21,132.17,1.82]
[1763575607151,7.79710925,132.2,132.17,1.82]
[1763575607326,7.14710925,132.19,132.17,1.82]
[1763575607523,7.14710925,132.18,132.17,1.82]
[1763575607833,7.79710925,132.18,132.17,1.82]
[1763575608745,7.79710925,132.18,132.14,18.22096]
[1763575608932,0.65,132.17,132.15,1.82]
[1763575609142,8.21603943,132.17,132.15,1.82]
[1763575609567,7.14710925,132.18,132.15,1.82]
[1763575609771,0.7,132.17,132.15,1.82]
[1763575610275,0.7,132.17,132.14,0.1]
[1763575610469,7.14710925,132.15,132.14,0.1]
[1763575610853,7.84710925,132.15,132.14,0.1]
[1763575611169,15.41426778,132.15,132.14,0.1]
[1763575611876,15.41426778,132.15,132.11,9.06710925]
[1763575611877,34.3321641,132.15,132.11,0.1]
[1763575612172,18.12096,132.18,132.11,0.1]
[1763575612398,18.75593694,132.24,132.15,7.14710925]
[1763575612551,0.7,132.18,132.12,62.79]
[1763575612879,0.7,132.18,132.11,44.71390368]
[1763575612880,7.14710925,132.16,132.13,1.82]
[1763575613045,7.14710925,132.16,132.12,7.14710925]
[1763575613246,7.56773119,132.14,132.12,1.82]
[1763575613446,7.56773119,132.14,132.11,0.1]
[1763575613747,7.84710925,132.13,132.12,1.82]
[1763575614464,7.84710925,132.13,132.11,0.1]
[1763575614667,15.41598602,132.12,132.11,0.1]
[1763575616977,0.7,132.11,132.08,0.2]
[1763575617177,7.14710925,132.09,132.08,0.2]
[1763575617660,7.84710925,132.09,132.08,0.2]
[1763575618152,7.14710925,132.08,132.07,0.2]
[1763575618350,14.9942185,132.08,132.06,1.51115631]
[1763575618573,0.61,132.07,132.06,1.51115631]
[1763575618775,15.3288515,132.07,132.06,1.51115631]
[1763575619087,9.99950164,132.11,132.06,2.20115631]
[1763575619382,9.99950164,132.11,132.06,1.51115631]
[1763575619383,7.14710925,132.09,132.06,1.51115631]
[1763575619574,7.14710925,132.08,132.06,1.51115631]
[1763575620385,27.10312589,132.11,132.06,1.51115631]
[1763575620386,7.14710925,132.11,132.07,0.69]
[1763575620679,7.57174225,132.07,132.06,1.51115631]
[1763575620853,14.71843316,132.08,132.06,1.51115631]
[1763575621180,7.75710925,132.07,132.06,1e-08]
[1763575621363,17.54593694,132.07,132.06,1e-08]
[1763575622187,10.39882769,132.06,132.05,1e-08]
[1763575622392,37.48689694,132.06,132.02,0.1]
[1763575622570,25.26806925,132.03,131.95,7.14710925]
[1763575622888,25.26806925,132.03,131.98,0.69]
[1763575622889,14.72171915,132.02,131.98,0.69]
[1763575623054,7.14710925,132.02,131.97,7.24710925]
[1763575623389,1.99999999,132.1,132.01,7.93710925]
[1763575623390,18.12096,132.09,132.01,7.93710925]
[1763575623597,7.14710925,132.09,132.04,7.14710925]
[1763575623808,33.64218873,132.1,132.05,7.14710925]
[1763575623956,33.64218873,132.1,132.06,7.14710925]
[1763575623957,14.71713196,132.1,132.06,7.14710925]
[1763575624168,7.56956826,132.11,132.07,7.14710925]
[1763575624369,7.14710925,132.1,132.05,18.12096]
[1763575624575,26.49319251,132.11,132.05,25.95806925]
[1763575624776,7.57116898,132.08,132.05,0.69]
[1763575624998,7.57116898,132.08,132.01,0.1]
[1763575625183,7.14710925,132.04,132.01,0.1]
[1763575625501,0.61,132.07,132.01,0.1]
[1763575625701,26.49909145,132.08,132.02,0.69]
[1763575625879,14.71827823,132.08,132.03,7.14710925]
[1763575626077,14.71812771,132.09,132.05,7.14710925]
[1763575626297,7.14710925,132.12,132.06,0.69]
[1763575626502,7.14710925,132.1,132.05,18.12096]
[1763575626681,7.14710925,132.1,132.06,7.14710925]
[1763575626882,7.14710925,132.1,132.03,0.69]
[1763575626883,7.14710925,132.07,132.03,0.69]
[1763575627084,0.61,132.09,132.02,9.67710925]
[1763575627085,7.14710925,132.06,132.02,9.67710925]
[1763575627294,7.14710925,132.06,132.02,2.53]
[1763575627498,7.14710925,132.06,132.02,7.83710925]
[1763575627681,7.57027653,132.1,132.04,7.14710925]
[1763575627883,7.14710925,132.08,132.04,18.12096]
[1763575628205,7.14710925,132.07,132.04,2.53]
[1763575628391,28.51978769,132.11,132.04,2.53]
[1763575628703,7.14710925,132.06,132.04,2.53]
[1763575628900,7.14710925,132.05,132.04,1.84]
[1763575629214,7.14710925,132.05,132.01,1.94]
[1763575629379,7.14710925,132.03,132.01,1.94]
[1763575629904,7.57185757,132.07,132.02,7.83710925]
[1763575630109,14.71896682,132.07,132.02,0.69]
[1763575630280,7.14710925,132.05,132.02,0.69]
[1763575630892,14.72007275,132.05,132.02,0.69]
[1763575631102,7.14710925,132.08,132.03,7.14710925]
[1763575631398,7.14710925,132.06,132.02,18.12096]
[1763575631598,7.14710925,132.04,132.01,0.79]
[1763575631782,0.61,132.07,132.02,0.69]
[1763575631983,0.61,132.07,132.01,0.1]
[1763575632180,7.14710925,132.03,132.01,0.1]
[1763575632587,7.14710925,132.02,132.01,0.1]
[1763575632774,7.5740362,132.03,132.01,0.1]
[1763575632976,7.75710925,132.02,132.01,0.1]
[1763575633306,7.14710925,132.02,132.01,0.1]
[1763575633688,7.75710925,132.02,132.01,0.1]
[1763575634305,7.75710925,132.02,131.99,0.1]
[1763575634508,7.14710925,132.0,131.99,0.1]
[1763575634699,7.14710925,132.0,131.97,0.1]
[1763575634700,7.75710925,132.0,131.97,0.1]
[1763575635026,14.72401484,131.98,131.97,0.1]
[1763575635391,33.66627881,131.98,131.93,0.69]
[1763575635587,7.14710925,131.96,131.93,0.69]
[1763575636218,7.14710925,131.96,131.92,8.98710925]
[1763575636219,7.14710925,131.95,131.92,1.84]
[1763575636521,7.14710925,131.93,131.89,1.84]
[1763575636814,26.52318883,131.96,131.9,0.69]
[1763575636995,7.14710925,131.94,131.9,7.83710925]
[1763575637197,26.52318883,131.96,131.9,7.83710925]
[1763575637515,7.14710925,131.95,131.91,7.83710925]
[1763575637890,7.14710925,131.97,131.93,7.14710925]
[1763575638090,7.14710925,131.96,131.93,1.84]
[1763575638400,7.14710925,131.95,131.91,1.84]
[1763575638603,7.14710925,131.99,131.94,7.14710925]
[1763575638800,7.57518369,132.01,131.93,25.26806925]
[1763575638801,9.78882769,132.0,131.93,25.26806925]
[1763575639113,7.14710925,131.97,131.94,0.69]
[1763575639318,7.14710925,131.98,131.94,7.83710925]
[1763575639621,7.14710925,131.97,131.94,0.69]
[1763575640500,7.14710925,131.95,131.88,0.1]
[1763575640708,7.14710925,131.95,131.91,7.14710925]
[1763575640886,33.67431857,131.94,131.9,7.86710925]
[1763575641704,7.14710925,131.92,131.9,0.72]
[1763575641898,7.14710925,131.93,131.9,0.72]
[1763575642111,7.14710925,131.92,131.9,0.72]
[1763575642313,7.14710925,131.91,131.88,0.82]
[1763575642493,7.14710925,131.92,131.88,7.96710925]
[1763575642897,7.14710925,131.93,131.89,7.86710925]
[1763575643102,7.14710925,131.93,131.9,0.72]
[1763575643298,7.14710925,131.95,131.91,7.14710925]
[1763575643501,7.14710925,131.95,131.91,8.98710925]
[1763575643701,7.14710925,131.95,131.92,0.72]
[1763575644003,7.57825341,131.96,131.92,0.72]
[1763575644204,14.72536266,131.96,131.92,7.86710925]
[1763575644422,14.72536266,131.96,131.91,1.84]
[1763575644423,7.14710925,131.94,131.91,1.84]
[1763575644722,7.14710925,131.94,131.91,2.5]
[1763575644899,7.57977715,131.93,131.91,2.5]
[1763575645096,7.57977715,131.93,131.91,1.84]
[1763575645319,18.84415824,131.93,131.91,2.5]
[1763575645521,18.84415824,131.93,131.91,1.84]
[1763575645704,11.26438109,131.92,131.88,37.72788063]
[1763575646025,11.26438109,131.92,131.89,2.5]
[1763575646528,11.26438109,131.91,131.88,18.22096]
[1763575646820,37.79360112,131.93,131.89,0.66]
[1763575647026,37.79360112,131.93,131.9,1.84]
[1763575647619,18.84415824,131.93,131.9,2.5]
[1763575648526,11.26438109,131.91,131.88,0.1]
[1763575648705,11.26438109,131.89,131.88,0.1]
[1763575649112,18.84645706,131.89,131.88,0.1]
[1763575650453,19.45645706,131.89,131.88,0.1]
[1763575651216,29.24528475,131.89,131.88,0.1]
[1763575651421,86.11085454,131.89,131.83,1.84]
[1763575651621,18.12096,131.86,131.77,0.66]
[1763575651800,11.26438109,131.85,131.77,2.5]
[1763575652001,11.26438109,131.82,131.77,31.88534109]
[1763575652327,11.26438109,131.82,131.78,11.92438109]
[1763575652531,26.5372659,131.89,131.8,18.12096]
[1763575652823,11.26438109,131.86,131.81,1.84]
[1763575653027,11.26438109,131.85,131.81,13.76438109]
[1763575653231,9.42207597,131.89,131.82,0.66]
[1763575653430,11.26438109,131.86,131.82,11.92438109]
[1763575653615,11.26438109,131.85,131.82,0.66]
[1763575654423,11.26438109,131.84,131.82,0.66]
[1763575654732,11.26438109,131.83,131.78,2.5]
[1763575654938,11.26438109,131.81,131.79,0.66]
[1763575655144,18.12096,131.85,131.79,0.66]
[1763575655322,11.26438109,131.83,131.79,11.92438109]
[1763575655507,11.26438109,131.83,131.79,0.66]
[1763575655712,11.26438109,131.83,131.8,0.66]
[1763575657335,18.73096,131.89,131.8,19.51141021]
[1763575657516,11.26438109,131.86,131.82,11.26438109]
[1763575657714,11.26438109,131.86,131.8,45.33612265]
[1763575657715,11.26438109,131.84,131.81,0.66]
[1763575657917,11.26438109,131.82,131.78,0.66]
[1763575658122,1.84,131.86,131.78,0.66]
[1763575658123,12.23882769,131.86,131.78,2.5]
[1763575658419,11.26438109,131.81,131.78,20.62096]
[1763575658630,19.96096,131.87,131.79,0.66]
[1763575658817,11.26438109,131.83,131.79,11.92438109]
[1763575659032,11.26438109,131.82,131.79,0.66]
[1763575659323,11.26438109,131.82,131.75,0.66]
[1763575659324,11.26438109,131.8,131.75,0.66]
[1763575659521,11.26438109,131.77,131.75,2.5]
[1763575659732,0.61,131.81,131.75,1.84]
[1763575659946,11.26438109,131.76,131.75,2.5]
[1763575660424,11.26438109,131.76,131.74,0.1]
[1763575660630,11.26438109,131.75,131.74,0.1]
[1763575661039,11.26438109,131.76,131.74,0.76]
[1763575661334,54.45711778,131.84,131.75,1.84]
[1763575661512,11.26438109,131.77,131.75,1.84]
[1763575661707,11.26438109,131.77,131.75,2.5]
[1763575661914,11.26438109,131.77,131.76,0.66]
[1763575662940,0.61,131.82,131.76,0.66]
[1763575663248,44.66829009,131.84,131.76,18.78096]
[1763575663411,11.26438109,131.82,131.77,11.26438109]
[1763575663613,11.26438109,131.81,131.77,11.92438109]
[1763575663812,11.26438109,131.8,131.78,0.66]
[1763575664453,11.26438109,131.79,131.78,0.66]
[1763575664657,27.15733009,131.84,131.78,0.66]
[1763575664818,11.26438109,131.79,131.76,1.84]
[1763575665016,11.26438109,131.78,131.76,2.5]
[1763575665342,26.55135791,131.82,131.76,2.5]
[1763575665522,11.26438109,131.79,131.76,2.5]
[1763575665723,11.26438109,131.79,131.77,1.84]
[1763575666035,11.26438109,131.81,131.77,2.5]
[1763575666342,26.55135791,131.82,131.78,0.66]
[1763575666523,11.26438109,131.8,131.78,0.66]
[1763575667430,26.55031975,131.83,131.78,0.66]
[1763575667740,1.99999999,131.91,131.79,11.26438109]
[1763575667944,11.26438109,131.86,131.82,11.26438109]
[1763575668120,11.26438109,131.86,131.83,2.5]
[1763575668523,18.73096,131.9,131.84,0.66]
[1763575668846,11.26438109,131.85,131.83,1.84]
[1763575669146,11.26438109,131.85,131.83,2.5]
[1763575669347,18.84822892,131.86,131.83,2.5]
[1763575669643,11.26438109,131.86,131.83,2.5]
[1763575669847,0.61,131.92,131.84,0.72]
[1763575670143,11.26438109,131.89,131.84,30.10534109]
[1763575670339,11.26438109,131.88,131.85,0.72]
[1763575670534,11.26438109,131.88,131.86,1.84]
[1763575670917,11.26438109,131.88,131.86,2.56]
[1763575671118,26.53324235,131.91,131.86,2.56]
[1763575671119,26.53324235,131.91,131.86,1.84]
[1763575671320,7.58055165,131.92,131.87,0.72]
[1763575671547,11.26438109,131.88,131.84,30.10534109]
[1763575671749,0.61,131.91,131.84,30.10534109]
[1763575671750,11.26438109,131.87,131.86,1.84]
[1763575671935,11.26438109,131.87,131.84,0.72]
[1763575672123,11.26438109,131.88,131.84,0.72]
[1763575672545,11.26438109,131.88,131.84,11.98438109]
[1763575672747,11.26438109,131.88,131.84,0.72]
[1763575672932,11.26438109,131.88,131.85,0.72]
[1763575673329,18.8474766,131.88,131.85,0.72]
[1763575673546,7.58309551,131.88,131.85,0.72]
[1763575673728,18.84668399,131.89,131.86,1.84]
[1763575673929,7.58119821,131.91,131.86,1.84]
[1763575674144,11.26438109,131.88,131.86,2.56]
[1763575674366,11.26438109,131.9,131.87,0.72]
[1763575674540,18.8455793,131.91,131.87,0.72]
[1763575674739,7.58119821,131.91,131.87,0.72]
[1763575674937,18.8455793,131.91,131.87,0.72]
[1763575675265,7.58119821,131.91,131.87,11.98438109]
[1763575675423,7.58119821,131.91,131.87,19.56758311]
[1763575675627,11.26438109,131.92,131.88,0.72]
[1763575675960,11.26438109,131.92,131.89,1.84]
[1763575676562,0.61,131.95,131.9,1.84]
[1763575676853,11.26438109,131.91,131.9,1.84]
[1763575677965,7.57920266,131.94,131.9,2.56]
[1763575678130,11.26438109,131.94,131.91,0.72]
[1763575678457,11.26438109,131.96,131.91,11.98438109]
[1763575678637,11.26438109,131.95,131.91,0.72]
[1763575678953,18.94444002,131.97,131.9,20.68585504]
[1763575678954,11.26438109,131.92,131.9,1.84]
[1763575679451,18.84464018,131.93,131.9,2.56]
[1763575680168,11.26438109,131.93,131.9,1.84]
[1763575680332,11.26438109,131.94,131.91,0.72]
[1763575680523,18.94581999,131.96,131.91,0.72]
[1763575680723,11.26438109,131.94,131.91,0.72]
[1763575681569,7.57690559,131.98,131.93,11.26438109]
[1763575681866,11.26438109,131.98,131.94,1.84]
[1763575682173,36.96188435,131.99,131.94,13.82438109]
[1763575682465,11.26438109,131.98,131.91,18.12096]
[1763575682628,11.26438109,131.96,131.92,13.82438109]
[1763575682828,45.24833211,131.99,131.93,0.72]
[1763575683029,11.26438109,131.94,131.89,0.72]
[1763575683236,11.26438109,131.93,131.9,1.84]
[1763575683469,11.26438109,131.91,131.86,9.78882769]
[1763575683665,11.26438109,131.94,131.87,2.56]
[1763575683871,11.26438109,131.93,131.89,29.38534109]
[1763575684169,7.57862826,131.95,131.9,1.84]
[1763575684403,11.26438109,131.95,131.9,13.82438109]
[1763575684591,11.26438109,131.96,131.91,11.98438109]
[1763575684967,7.57641242,131.99,131.93,11.26438109]
[1763575685284,7.57641242,131.99,131.92,0.72]
[1763575685285,11.26438109,131.98,131.94,13.10438109]
[1763575685592,11.26438109,131.98,131.95,18.84096]
[1763575685913,11.26438109,131.98,131.96,1.84]
[1763575686115,0.61,131.98,131.96,1.84]
[1763575686407,7.57518369,132.01,131.96,0.72]
[1763575686571,11.26438109,131.99,131.96,0.72]
[1763575687108,11.26438109,131.98,131.95,1.84]
[1763575687276,11.26438109,131.97,131.95,1.84]
[1763575687472,7.57784919,131.97,131.91,18.84096]
[1763575687808,0.61,131.96,131.92,1.84]
[1763575687990,11.26438109,131.94,131.92,1.84]
[1763575688296,7.57678386,131.99,131.93,11.98438109]
[1763575688498,26.51761271,131.99,131.93,0.72]
[1763575688682,18.84116495,131.99,131.95,11.26438109]
[1763575688878,7.57678386,131.99,131.96,1.84]
[1763575689080,18.84021594,132.0,131.96,1.84]
[1763575689290,0.2,132.02,131.97,11.98438109]
[1763575689596,19.0393387,132.02,131.97,19.56175172]
[1763575689770,19.0393387,132.02,131.98,0.72]
[1763575689976,11.26438109,132.01,131.99,1.84]
[1763575690688,19.0393387,132.02,131.99,1.84]
[1763575691081,11.26438109,132.01,131.99,1.84]
[1763575691378,11.26438109,132.0,131.99,1.84]
[1763575691586,38.38953259,132.0,131.97,1.84]
[1763575691885,26.5151515,132.0,131.96,1.84]
[1763575692398,18.84013866,132.0,131.96,2.56]
[1763575692606,7.57575757,132.0,131.97,0.72]
[1763575693100,19.03939536,132.02,131.97,11.98438109]
[1763575693398,19.03939536,132.02,131.98,11.98438109]
[1763575693399,7.77501427,132.02,131.98,11.98438109]
[1763575693706,7.77501427,132.02,131.99,2.56]
[1763575693911,11.26438109,132.0,131.99,1.84]
[1763575694277,26.71153903,132.02,131.96,0.72]
[1763575694611,11.26438109,132.01,131.97,1.84]
[1763575694797,7.77501427,132.02,131.98,11.98438109]
[1763575695102,0.2,132.02,131.99,11.26438109]
[1763575695303,0.2,132.02,132.01,18.12096]
[1763575695527,18.83642763,132.07,132.03,7.5740362]
[1763575695674,11.26438109,132.06,132.04,1.84]
[1763575696295,11.26438109,132.05,132.04,1.84]
[1763575696608,11.26438109,132.05,132.02,1.84]
[1763575696824,11.26438109,132.03,132.02,1.84]
[1763575697117,7.57204654,132.07,132.02,2.56]
[1763575697313,7.57002271,132.1,132.03,18.84096]
[1763575697606,11.26438109,132.09,132.04,0.72]
[1763575697806,26.69328722,132.11,132.05,13.10438109]
[1763575697994,11.26438109,132.09,132.05,13.10438109]
[1763575698306,11.26438109,132.09,132.05,1.84]
[1763575698512,11.26438109,132.1,132.06,11.98438109]
[1763575698711,7.76966297,132.11,132.06,11.98438109]
[1763575698892,0.2,132.11,132.07,0.72]
[1763575699090,11.46438109,132.11,132.08,1.84]
[1763575699314,27.36307857,132.11,132.03,18.12096]
[1763575699503,11.26438109,132.1,132.06,11.98438109]
[1763575699830,7.57020645,132.1,132.07,1.84]
[1763575700028,18.83458754,132.1,132.07,2.53]
[1763575700208,11.26438109,132.09,132.07,0.69]
[1763575700524,11.26438109,132.08,132.07,1.84]
[1763575701826,18.83555007,132.08,132.07,1.84]
[1763575702022,7.57059365,132.1,132.07,2.53]
[1763575702214,7.57059365,132.1,132.07,1.84]
[1763575702422,19.03405154,132.11,132.07,1.84]
[1763575702738,7.76945728,132.11,132.08,0.69]
[1763575703395,19.03383837,132.11,132.08,0.69]
[1763575703799,37.95746262,132.11,132.08,0.69]
[1763575704726,11.26438109,132.1,132.07,1.84]
[1763575704904,11.26438109,132.1,132.07,2.53]
[1763575705299,11.26438109,132.1,132.07,1.84]
[1763575705527,11.26438109,132.1,132.07,2.54]
[1763575705702,0.2,132.11,132.08,19.53541067]
[1763575706102,0.2,132.11,132.09,0.7]
[1763575706427,0.2,132.11,132.1,1.84]
[1763575706614,7.7694497,132.11,132.1,1.84]
[1763575706816,14.93959421,132.11,132.1,1.84]
[1763575709511,14.93959421,132.11,132.06,33.56303388]
[1763575709710,7.5705958,132.09,132.07,2.54]
[1763575710033,14.93973649,132.11,132.07,10.11170176]
[1763575710332,0.2,132.11,132.08,7.87014451]
[1763575710518,0.2,132.11,132.09,7.87014451]
[1763575710719,0.2,132.11,132.1,1.84]
[1763575712852,7.17014451,132.15,132.14,1.84]
[1763575713347,0.67,132.17,132.14,1.84]
[1763575713520,7.17014451,132.16,132.14,2.54]
[1763575713717,7.56715853,132.15,132.14,1.84]
[1763575714652,34.32519936,132.15,132.11,18.12096]
[1763575714947,34.32519936,132.15,132.12,1.82]
[1763575714948,7.17014451,132.13,132.12,1.82]
[1763575715558,7.84014451,132.13,132.12,1.82]
[1763575715722,7.56887677,132.12,132.1,1.82]
[1763575715925,14.73867326,132.13,132.1,2.52]
[1763575716217,7.17014451,132.14,132.1,2.52]
[1763575716525,7.17014451,132.15,132.11,0.7]
[1763575716842,7.17014451,132.14,132.11,18.82096]
[1763575717042,7.17014451,132.14,132.1,1.82]
[1763575717418,7.17014451,132.14,132.11,0.7]
[1763575717640,7.17014451,132.14,132.1,1.82]
[1763575717821,7.17014451,132.14,132.11,0.7]
[1763575718549,7.17014451,132.14,132.1,1.82]
[1763575718761,7.17014451,132.14,132.11,0.7]
[1763575719556,7.17014451,132.14,132.1,1.82]
[1763575719846,7.17014451,132.14,132.11,0.7]
[1763575720543,7.17014451,132.13,132.1,1.82]
[1763575720758,7.17014451,132.11,132.1,1.82]
[1763575721049,7.17014451,132.11,132.09,1.82]
[1763575721346,7.17014451,132.16,132.09,1.82]
[1763575721347,7.17014451,132.1,132.09,1.82]
[1763575721648,7.17014451,132.1,132.04,10.48882769]
[1763575721864,0.67,132.11,132.05,2.52]
[1763575722062,7.17014451,132.09,132.05,27.81110451]
[1763575722227,7.17014451,132.1,132.05,27.11110451]
[1763575722433,7.17014451,132.1,132.06,7.87014451]
[1763575722733,7.17014451,132.1,132.06,0.7]
[1763575722940,18.79096,132.13,132.07,0.7]
[1763575723241,7.17014451,132.11,132.08,1.82]
[1763575723454,7.17014451,132.11,132.08,2.52]
[1763575724139,7.17014451,132.1,132.08,1.82]
[1763575724957,7.17014451,132.09,132.08,1.82]
[1763575725163,7.17014451,132.09,132.07,1.82]
[1763575726935,7.17014451,132.08,132.07,1.82]
[1763575727345,7.17014451,132.08,132.05,18.12096]
[1763575727553,7.17014451,132.06,132.05,18.12096]
[1763575727742,7.17014451,132.06,131.95,1.99999999]
[1763575727743,7.17014451,132.06,131.99,9.78882769]
[1763575728072,7.17014451,132.05,132.01,7.17014451]
[1763575728372,7.17014451,132.04,132.02,0.7]
[1763575728671,7.17014451,132.05,132.03,1.82]
[1763575729046,7.17014451,132.06,132.03,1.82]
[1763575729247,7.17014451,132.07,132.04,0.7]
[1763575729651,7.17014451,132.07,132.03,1.82]
[1763575729871,7.17014451,132.05,132.03,1.82]
[1763575730179,7.17014451,132.04,132.03,1.82]
[1763575730346,7.82014451,132.06,132.01,1.82]
[1763575730554,7.82014451,132.06,132.01,27.11110451]
[1763575730770,0.65,132.05,132.01,27.11110451]
[1763575730978,7.17014451,132.06,132.01,27.80110451]
[1763575731179,7.17014451,132.05,132.02,0.69]
[1763575731489,7.17014451,132.04,132.01,19.94096]
[1763575731783,7.17014451,132.04,132.01,1.82]